bitfinex-derivatives/quotes_SOLF0:USTF0_20250904
["timestamp","ask_amount","ask_price","bid_price","bid_amount"]
[1756984919045,7.65,208.03,207.99,2.54150047]
[1756984919347,67.2782,208.04,207.99,2.54150047]
[1756984919549,7.65,208.03,207.99,2.54150047]
[1756984919750,4.3256,208.01,207.99,2.54150047]
[1756984919951,11.9756,208.01,207.99,2.54150047]
[1756984921553,7.65,208.06,208.0,7.21]
[1756984921952,7.65,208.06,207.99,2.54150047]
[1756984922448,74.9267,208.04,207.96,2.54150047]
[1756984922842,7.65,208.02,207.96,2.54150047]
[1756984923043,7.65,207.97,207.96,2.54150047]
[1756984923248,7.65,208.0,207.93,2.54150047]
[1756984924849,4.3266,207.96,207.93,2.54150047]
[1756984925055,11.9766,207.96,207.93,2.54150047]
[1756984925350,7.65,208.02,207.93,9.75150047]
[1756984925555,4.3259,207.99,207.96,2.54150047]
[1756984926055,4.3259,207.99,207.97,7.21]
[1756984927457,4.3259,207.99,207.98,1.62705395]
[1756984928855,11.9759,207.99,207.98,1.62705395]
[1756984941664,4.3259,207.99,207.98,8.99705395]
[1756984941866,4.3259,207.99,207.98,1.62705395]
[1756984942569,11.6359,207.99,207.98,1.62705395]
[1756984943670,4.3259,207.99,207.98,1.62705395]
[1756984943871,11.6359,207.99,207.98,1.62705395]
[1756984944773,11.636,207.98,207.97,1.62705395]
[1756984946474,7.31,207.96,207.95,1.62705395]
[1756984951174,4.3269,207.94,207.93,1.62705395]
[1756984951378,11.6369,207.94,207.93,1.62705395]
[1756984953981,4.3273,207.92,207.9,4.025717]
[1756984954286,4.3273,207.92,207.88,7.37]
[1756984954287,4.3273,207.92,207.91,1.62705395]
[1756984954487,11.6373,207.92,207.91,1.62705395]
[1756984955390,4.3273,207.92,207.91,1.62705395]
[1756984955786,4.327,207.94,207.92,7.37]
[1756984956085,4.327,207.94,207.93,1.62705395]
[1756984956585,11.637,207.94,207.93,1.62705395]
[1756984958090,7.31,207.94,207.93,1.62705395]
[1756984958885,7.31,207.94,207.89,11.395717]
[1756984959090,7.31,207.94,207.93,1.62705395]
[1756984959485,4.3261,207.98,207.93,8.99705395]
[1756984959691,7.31,208.0,207.95,1.62705395]
[1756984960592,1.62705395,208.01,207.95,1.62705395]
[1756984960593,7.31,207.96,207.95,1.62705395]
[1756984961793,72.59293305,208.07,207.95,1.62705395]
[1756984961995,68.89415395,208.07,207.95,7.37]
[1756984962191,67.2671,208.07,208.02,1.62705395]
[1756984962591,7.33,208.06,208.02,1.62705395]
[1756984962993,11.655,208.03,208.02,1.62705395]
[1756984963794,7.33,208.03,208.02,1.62705395]
[1756984963985,7.33,208.03,207.96,7.69]
[1756984964189,7.33,208.03,208.02,1.62705395]
[1756984964889,7.33,208.03,207.96,7.69]
[1756984965086,7.33,208.03,208.0,1.62705395]
[1756984965492,11.6554,208.01,208.0,1.62705395]
[1756984968990,67.2823,208.02,207.96,1.62705395]
[1756984969190,7.33,208.01,207.96,1.62705395]
[1756984969893,67.2894,208.0,207.94,1.62705395]
[1756984970096,8.95705395,207.99,207.92,1.62705395]
[1756984970797,11.6569,207.94,207.92,1.62705395]
[1756984970998,7.33,207.93,207.92,1.62705395]
[1756984972695,4.3274,207.92,207.9,1.62705395]
[1756984972897,4.3274,207.92,207.9,9.31705395]
[1756984974493,4.3274,207.92,207.9,1.62705395]
[1756984974696,11.6574,207.92,207.9,1.62705395]
[1756984975397,4.3274,207.92,207.9,1.62705395]
[1756984976197,11.6574,207.92,207.9,1.62705395]
[1756984976799,7.33,207.91,207.9,1.62705395]
[1756984976993,4.3274,207.92,207.9,1.62705395]
[1756984978194,11.6574,207.92,207.9,1.62705395]
[1756984978397,7.33,207.91,207.9,1.62705395]
[1756984979198,7.33,207.91,207.87,7.69]
[1756984979404,7.33,207.9,207.89,1.62705395]
[1756984984800,1.62705395,207.97,207.89,1.62705395]
[1756984984801,7.33,207.96,207.89,1.62705395]
[1756984986007,4.3272,207.93,207.89,1.62705395]
[1756984987202,67.2954,207.98,207.89,1.62705395]
[1756984987203,4.3274,207.92,207.89,1.62705395]
[1756984987406,7.33,207.91,207.86,2.54464437]
[1756984987609,7.33,207.96,207.86,2.54464437]
[1756984988903,7.33,207.93,207.86,2.54464437]
[1756984989105,7.33,207.93,207.84,4.04364029]
[1756984989504,7.33,207.93,207.83,4.04364029]
[1756984989505,67.3184,207.91,207.83,4.04364029]
[1756984989703,67.3184,207.91,207.8,90.92364029]
[1756984989898,7.33,207.9,207.8,90.92364029]
[1756984990098,67.3184,207.91,207.8,90.92364029]
[1756984990400,7.33,207.9,207.8,90.92364029]
[1756984990603,67.3251,207.89,207.8,4.04364029]
[1756984990799,7.33,207.88,207.79,4.04364029]
[1756984991902,4.3287,207.86,207.79,4.04364029]
[1756984992206,4.3287,207.86,207.78,259.72221103]
[1756984992403,11.8387,207.86,207.78,259.72221103]
[1756984992806,11.8387,207.86,207.79,11.81364029]
[1756984993408,4.3289,207.85,207.79,7.77]
[1756984995508,4.3291,207.84,207.78,252.02776053]
[1756984995704,4.3291,207.84,207.79,7.77]
[1756984995899,4.3291,207.84,207.78,252.02776053]
[1756984996100,4.3291,207.84,207.79,7.77]
[1756984996300,4.3291,207.84,207.78,252.02776053]
[1756984996504,4.3291,207.84,207.79,7.77]
[1756984996900,11.8393,207.83,207.79,7.77]
[1756984997206,7.51,207.82,207.79,7.77]
[1756984997509,11.8397,207.81,207.78,247.98857074]
[1756984998409,11.84,207.8,207.78,118.48]
[1756984998907,11.84,207.8,207.76,7.77]
[1756984999112,11.84,207.8,207.76,62.25]
[1756984999409,11.84,207.8,207.77,7.77]
[1756985000109,4.3294,207.83,207.76,54.48]
[1756985000310,7.51,207.83,207.76,62.25]
[1756985001003,67.3443,207.83,207.76,54.48]
[1756985001208,67.3406,207.84,207.74,90.44]
[1756985001209,7.51,207.81,207.74,90.44]
[1756985001403,4.3304,207.78,207.74,90.44]
[1756985001606,11.8404,207.78,207.75,7.77]
[1756985002311,11.8406,207.77,207.74,90.44]
[1756985002509,11.8406,207.77,207.74,98.21]
[1756985004212,4.3308,207.76,207.74,98.21]
[1756985004412,7.51,207.79,207.7,7.77]
[1756985004609,7.51,207.79,207.72,2.54464437]
[1756985005413,7.51,207.79,207.71,121.02464437]
[1756985006007,4.3307,207.76,207.72,7.77]
[1756985006210,7.51,207.79,207.72,7.77]
[1756985006712,67.3601,207.78,207.71,2.54464437]
[1756985007012,7.51,207.77,207.71,2.54464437]
[1756985007715,11.8405,207.77,207.71,10.31464437]
[1756985008210,11.8405,207.77,207.74,10.31464437]
[1756985008608,4.3308,207.76,207.74,10.31464437]
[1756985009014,7.51,207.79,207.71,10.31464437]
[1756985009513,67.3539,207.8,207.71,10.31464437]
[1756985009714,7.51,207.73,207.7,10.31464437]
[1756985009912,7.51,207.76,207.68,118.48]
[1756985010107,4.3316,207.72,207.68,118.48]
[1756985010312,11.8416,207.72,207.68,126.25]
[1756985010511,11.8416,207.72,207.69,7.77]
[1756985011712,4.3316,207.72,207.68,118.48]
[1756985011909,7.51,207.74,207.68,118.48]
[1756985012109,7.51,207.72,207.65,7.77]
[1756985013016,4.3325,207.68,207.65,7.77]
[1756985015414,11.8425,207.68,207.65,7.77]
[1756985015921,4.3325,207.68,207.63,118.48]
[1756985016119,4.3325,207.68,207.65,7.77]
[1756985017820,4.3319,207.7,207.65,7.77]
[1756985018323,7.51,207.69,207.65,7.77]
[1756985018824,7.51,207.69,207.64,2.54464437]
[1756985019223,7.51,207.69,207.65,7.77]
[1756985020327,7.51,207.69,207.65,2.54464437]
[1756985020527,7.51,207.69,207.65,10.31464437]
[1756985021120,7.51,207.69,207.65,2.54464437]
[1756985021326,7.51,207.69,207.66,7.77]
[1756985022128,118.48,207.78,207.66,7.62]
[1756985022129,12.2304,207.78,207.66,7.62]
[1756985022332,7.9,207.78,207.71,2.54464437]
[1756985023027,7.9,207.79,207.71,2.54464437]
[1756985023327,4.331,207.75,207.71,2.54464437]
[1756985023528,12.231,207.75,207.72,7.62]
[1756985024127,4.331,207.75,207.71,2.54464437]
[1756985024323,7.9,207.73,207.71,2.54464437]
[1756985025031,12.2314,207.73,207.71,2.54464437]
[1756985025424,7.9,207.72,207.71,2.54464437]
[1756985025929,7.9,207.7,207.68,2.54464437]
[1756985026130,7.9,207.73,207.65,2.54464437]
[1756985026827,4.3323,207.69,207.65,2.54464437]
[1756985027027,4.3323,207.69,207.66,7.62]
[1756985027733,4.3325,207.68,207.66,7.62]
[1756985027932,67.3733,207.74,207.65,2.54464437]
[1756985027933,7.9,207.72,207.65,2.54464437]
[1756985028330,12.2323,207.69,207.65,10.16464437]
[1756985029234,4.3323,207.69,207.66,7.62]
[1756985029934,4.3323,207.69,207.65,2.54464437]
[1756985030229,4.3318,207.71,207.66,7.62]
[1756985030429,4.3318,207.71,207.64,7.62]
[1756985030624,4.3318,207.71,207.66,2.54464437]
[1756985030821,4.3318,207.71,207.67,7.62]
[1756985031026,12.2318,207.71,207.66,2.54464437]
[1756985031227,12.2318,207.71,207.67,7.62]
[1756985031428,67.3733,207.74,207.66,2.54464437]
[1756985031429,4.332,207.7,207.66,2.54464437]
[1756985031725,12.232,207.7,207.66,2.54464437]
[1756985031922,12.232,207.7,207.67,7.62]
[1756985032833,4.332,207.7,207.66,2.54464437]
[1756985033227,4.332,207.7,207.67,7.62]
[1756985033828,4.332,207.7,207.66,2.54464437]
[1756985034234,4.332,207.7,207.67,7.62]
[1756985034823,4.332,207.7,207.66,2.54464437]
[1756985035030,4.3315,207.72,207.66,2.54464437]
[1756985035233,4.3315,207.72,207.62,118.48]
[1756985035234,7.9,207.76,207.7,7.62]
[1756985035935,4.3312,207.74,207.7,7.62]
[1756985036433,4.3312,207.74,207.69,2.54464437]
[1756985036834,4.3312,207.74,207.7,7.62]
[1756985037032,4.3312,207.74,207.69,2.54464437]
[1756985037435,4.3312,207.74,207.73,7.62]
[1756985037636,12.2307,207.76,207.73,7.62]
[1756985037831,4.3307,207.76,207.73,7.62]
[1756985039634,12.2307,207.76,207.73,7.62]
[1756985040343,4.3303,207.78,207.72,10.16464437]
[1756985040929,7.9,207.79,207.72,10.16464437]
[1756985041129,12.2306,207.77,207.73,7.62]
[1756985041738,7.9,207.76,207.73,7.62]
[1756985043339,12.2308,207.76,207.73,7.62]
[1756985046243,7.9,207.75,207.73,7.62]
[1756985046446,7.9,207.75,207.69,2.54464437]
[1756985047144,4.3314,207.73,207.69,2.54464437]
[1756985047442,4.3314,207.73,207.71,1.63139271]
[1756985047443,7.9,207.72,207.71,1.63139271]
[1756985047637,4.3314,207.73,207.71,1.63139271]
[1756985048548,12.2309,207.75,207.71,9.25139271]
[1756985048741,7.9,207.74,207.73,1.63139271]
[1756985049941,12.2305,207.77,207.73,9.25139271]
[1756985050241,7.9,207.76,207.75,1.63139271]
[1756985050843,4.3301,207.79,207.75,9.25139271]
[1756985051044,12.2301,207.79,207.75,9.25139271]
[1756985051244,7.9,207.77,207.69,7.62]
[1756985051449,7.9,207.77,207.72,1.63139271]
[1756985052848,4.3313,207.74,207.72,1.63139271]
[1756985053042,7.63,207.73,207.72,1.63139271]
[1756985057054,7.63,207.75,207.72,1.63139271]
[1756985057351,7.63,207.75,207.74,1.63139271]
[1756985057744,7.63,207.77,207.74,8.94139271]
[1756985057949,7.63,207.77,207.76,1.63139271]
[1756985058249,7.63,207.81,207.76,1.63139271]
[1756985058848,7.63,207.79,207.76,1.63139271]
[1756985059048,186.36506398,207.82,207.76,1.63139271]
[1756985059255,7.63,207.81,207.76,1.63139271]
[1756985059843,186.36506398,207.82,207.76,1.63139271]
[1756985060047,7.63,207.81,207.72,7.31]
[1756985060450,7.63,207.81,207.75,1.63139271]
[1756985061849,4.3303,207.78,207.75,1.63139271]
[1756985062049,4.3303,207.78,207.76,1.63139271]
[1756985062050,7.63,207.77,207.76,1.63139271]
[1756985062551,193.99506398,207.82,207.76,1.63139271]
[1756985062858,193.99506398,207.82,207.8,1.63139271]
[1756985063451,186.36506398,207.82,207.81,7.31]
[1756985064545,11.9586,207.86,207.81,7.31]
[1756985064749,7.63,207.85,207.84,1.63139271]
[1756985065457,7.63,207.85,207.83,1.63139271]
[1756985066053,4.3286,207.86,207.83,1.63139271]
[1756985066253,7.63,207.85,207.83,1.63139271]
[1756985067253,11.9589,207.85,207.83,1.63139271]
[1756985067454,11.9589,207.85,207.78,7.31]
[1756985067455,7.63,207.84,207.82,1.63139271]
[1756985067758,9.26139271,207.87,207.8,1.63139271]
[1756985068349,7.63,207.81,207.8,1.63139271]
[1756985070063,7.63,207.81,207.79,1.63139271]
[1756985071368,11.9597,207.81,207.79,1.63139271]
[1756985071759,11.9597,207.81,207.77,1.63139271]
[1756985072063,11.9597,207.81,207.77,8.94139271]
[1756985072664,1.63139271,207.84,207.77,8.94139271]
[1756985072869,11.9602,207.79,207.72,7.31]
[1756985073069,7.63,207.78,207.76,1.63139271]
[1756985073269,7.63,207.79,207.73,1.63139271]
[1756985074471,11.9608,207.76,207.73,7.31]
[1756985075269,4.3308,207.76,207.73,7.31]
[1756985075669,11.9608,207.76,207.73,7.31]
[1756985075966,4.3308,207.76,207.72,1.63139271]
[1756985076279,11.9608,207.76,207.72,8.94139271]
[1756985076469,4.3308,207.76,207.72,1.63139271]
[1756985076772,7.63,207.75,207.69,1.63139271]
[1756985077965,4.3312,207.74,207.69,1.63139271]
[1756985078162,11.9612,207.74,207.7,7.31]
[1756985078771,4.3312,207.74,207.7,7.31]
[1756985078971,7.63,207.73,207.7,7.31]
[1756985079869,4.3307,207.76,207.71,1.63139271]
[1756985080067,4.3307,207.76,207.72,1.63139271]
[1756985080266,11.9607,207.76,207.72,8.94139271]
[1756985080767,4.3307,207.76,207.72,8.94139271]
[1756985081070,7.63,207.75,207.72,8.94139271]
[1756985081460,4.3307,207.76,207.72,1.63139271]
[1756985081667,7.63,207.74,207.71,1.63139271]
[1756985081867,7.63,207.74,207.71,8.94139271]
[1756985082374,7.63,207.74,207.66,118.32]
[1756985082375,7.83,207.76,207.69,1.63139271]
[1756985082567,1.63139271,207.75,207.69,1.63139271]
[1756985082767,7.83,207.74,207.69,1.63139271]
[1756985082963,1.63139271,207.75,207.69,1.63139271]
[1756985083163,7.83,207.74,207.69,1.63139271]
[1756985083372,1.63139271,207.75,207.69,1.63139271]
[1756985083572,7.83,207.74,207.69,1.63139271]
[1756985083765,1.63139271,207.75,207.69,1.63139271]
[1756985083967,4.3317,207.72,207.69,1.63139271]
[1756985084476,7.83,207.71,207.69,1.63139271]
[1756985084870,12.1617,207.72,207.69,9.40139271]
[1756985085069,12.1617,207.72,207.69,1.63139271]
[1756985085269,12.1617,207.72,207.69,9.40139271]
[1756985085674,4.3317,207.72,207.69,1.63139271]
[1756985085875,12.1618,207.71,207.66,116.07]
[1756985086069,4.3318,207.71,207.66,9.40139271]
[1756985086277,7.83,207.73,207.66,9.40139271]
[1756985087374,12.162,207.7,207.66,9.40139271]
[1756985087878,12.162,207.7,207.66,1.63139271]
[1756985088073,4.332,207.7,207.67,7.77]
[1756985088272,12.1616,207.72,207.69,7.77]
[1756985088873,4.3311,207.74,207.69,7.77]
[1756985089175,12.1611,207.74,207.71,7.77]
[1756985089377,7.83,207.74,207.71,7.77]
[1756985089577,7.83,207.75,207.72,9.40139271]
[1756985090371,7.83,207.74,207.71,1.63139271]
[1756985090680,67.3655,207.77,207.64,4.0092284]
[1756985090981,7.83,207.75,207.71,7.77]
[1756985091868,7.83,207.75,207.72,1.63139271]
[1756985092074,7.83,207.79,207.74,1.63139271]
[1756985092274,7.83,207.81,207.74,1.63139271]
[1756985092481,1.63139271,207.8,207.71,7.77]
[1756985092682,1.63139271,207.8,207.74,1.63139271]
[1756985092982,7.83,207.79,207.74,1.63139271]
[1756985093170,1.63139271,207.8,207.74,1.63139271]
[1756985093374,7.83,207.79,207.74,1.63139271]
[1756985093779,9.46139271,207.8,207.74,1.63139271]
[1756985093979,4.3304,207.77,207.74,9.40139271]
[1756985095077,4.3304,207.77,207.75,7.77]
[1756985095981,4.3304,207.77,207.76,1.63139271]
[1756985096281,4.3301,207.79,207.76,1.63139271]
[1756985096479,4.3301,207.79,207.76,9.40139271]
[1756985096873,4.3297,207.81,207.78,1.63139271]
[1756985097073,12.1597,207.81,207.78,1.63139271]
[1756985097682,12.1597,207.81,207.8,1.63139271]
[1756985098479,7.83,207.83,207.8,9.40139271]
[1756985098682,12.1592,207.84,207.82,1.63139271]
[1756985100579,7.83,207.82,207.74,7.77]
[1756985100784,7.83,207.84,207.78,1.63139271]
[1756985100983,9.46139271,207.84,207.78,1.63139271]
[1756985101283,7.83,207.84,207.78,1.63139271]
[1756985101884,4.3299,207.8,207.78,1.63139271]
[1756985102076,7.83,207.79,207.78,1.63139271]
[1756985103385,4.3299,207.8,207.78,1.63139271]
[1756985103580,4.3304,207.78,207.74,7.77]
[1756985103779,7.83,207.81,207.75,1.63139271]
[1756985105385,4.3306,207.77,207.75,1.63139271]
[1756985105688,7.83,207.76,207.75,1.63139271]
[1756985107285,7.83,207.76,207.7,7.77]
[1756985107493,7.83,207.78,207.72,1.63139271]
[1756985107686,75.1915,207.78,207.71,1.63139271]
[1756985107882,7.83,207.72,207.7,1.63139271]
[1756985109592,7.83,207.72,207.68,10.31922754]
[1756985110395,7.83,207.72,207.68,14.35989054]
[1756985111493,7.83,207.72,207.68,10.31922754]
[1756985112395,7.83,207.72,207.68,9.89922754]
[1756985112988,0.03550175,207.73,207.72,7.35]
[1756985113590,2.54922754,207.85,207.72,7.35]
[1756985113591,7.61,207.84,207.73,7.35]
[1756985113796,7.61,207.84,207.75,2.54922754]
[1756985114798,7.61,207.79,207.77,0.0366068]
[1756985116797,4.3302,207.79,207.77,0.0366068]
[1756985117102,7.61,207.78,207.77,0.0366068]
[1756985119999,4.3297,207.81,207.77,0.0366068]
[1756985120204,7.61,207.81,207.77,9.93583434]
[1756985120701,7.61,207.88,207.77,2.58583434]
[1756985121103,67.3259,207.89,207.77,2.58583434]
[1756985121104,7.61,207.86,207.77,2.58583434]
[1756985121505,74.9509,207.84,207.77,0.0366068]
[1756985122007,7.61,207.82,207.77,0.0366068]
[1756985122202,67.3378,207.85,207.77,0.0366068]
[1756985122407,7.61,207.84,207.77,0.0366068]
[1756985124009,7.61,207.82,207.77,0.0366068]
[1756985124911,4.3301,207.79,207.77,0.0366068]
[1756985125211,7.61,207.78,207.77,0.0366068]
[1756985129715,11.9401,207.79,207.77,0.0366068]
[1756985131313,4.3297,207.81,207.78,7.35]
[1756985131518,4.3297,207.81,207.77,2.58583434]
[1756985131718,7.61,207.8,207.77,2.58583434]
[1756985132114,67.3365,207.86,207.77,0.0366068]
[1756985132115,7.61,207.78,207.77,0.0366068]
[1756985135223,7.61,207.76,207.67,2.54922754]
[1756985135428,7.61,207.74,207.67,2.54922754]
[1756985135825,7.61,207.74,207.66,4.04417737]
[1756985136123,7.61,207.69,207.66,4.04417737]
[1756985136625,7.61,207.69,207.65,13.94340491]
[1756985136826,11.9422,207.69,207.65,13.94340491]
[1756985137225,7.61,207.68,207.65,13.94340491]
[1756985137928,4.3322,207.69,207.65,13.94340491]
[1756985138228,11.9422,207.69,207.65,13.94340491]
[1756985138525,11.9422,207.69,207.65,9.89922754]
[1756985142432,67.3828,207.71,207.64,2.54922754]
[1756985142633,7.26,207.7,207.64,2.54922754]
[1756985143324,7.26,207.7,207.61,122.30417737]
[1756985143527,7.26,207.7,207.61,124.85340491]
[1756985144024,4.3323,207.68,207.61,124.85340491]
[1756985144228,11.5923,207.68,207.61,124.85340491]
[1756985144430,0.03237195,207.67,207.61,120.80922754]
[1756985145130,11.62507195,207.67,207.61,2.54922754]
[1756985145526,7.29237195,207.67,207.61,2.54922754]
[1756985146735,4.3329,207.66,207.61,2.54922754]
[1756985146935,7.26,207.65,207.61,10.24922754]
[1756985147939,7.26,207.65,207.61,7.7]
[1756985148138,7.26,207.64,207.61,7.7]
[1756985153447,11.5933,207.64,207.61,7.7]
[1756985155244,4.3335,207.63,207.61,7.7]
[1756985155446,11.5935,207.63,207.61,7.7]
[1756985156250,4.3335,207.63,207.6,7.7]
[1756985157044,11.5937,207.62,207.58,7.7]
[1756985157849,11.5937,207.62,207.57,2.54922754]
[1756985158046,11.5937,207.62,207.58,7.7]
[1756985158549,11.5937,207.62,207.57,2.54922754]
[1756985158754,11.5937,207.62,207.6,2.54922754]
[1756985159143,11.5937,207.62,207.58,7.7]
[1756985159348,11.5937,207.62,207.6,2.54922754]
[1756985160354,4.3332,207.64,207.6,2.54922754]
[1756985160650,7.26,207.63,207.6,2.54922754]
[1756985160849,11.5934,207.63,207.6,10.24922754]
[1756985162450,7.26,207.62,207.6,10.24922754]
[1756985162646,7.26,207.62,207.6,2.54922754]
[1756985163249,7.26,207.61,207.57,10.24922754]
[1756985163447,67.3959,207.67,207.57,10.24922754]
[1756985163448,7.26,207.65,207.57,10.24922754]
[1756985163654,7.26,207.64,207.57,10.24922754]
[1756985163948,4.3343,207.59,207.57,10.24922754]
[1756985164152,11.5943,207.59,207.57,2.54922754]
[1756985164352,7.26,207.59,207.57,2.54922754]
[1756985164547,7.26,207.59,207.57,10.24922754]
[1756985165155,4.334,207.6,207.57,10.24922754]
[1756985165350,11.594,207.6,207.57,10.24922754]
[1756985165554,4.3343,207.59,207.57,10.24922754]
[1756985165760,4.3343,207.59,207.56,118.28]
[1756985166053,7.26,207.58,207.56,118.28]
[1756985166650,7.26,207.64,207.56,118.28]
[1756985167056,7.26,207.64,207.57,7.7]
[1756985167858,7.26,207.63,207.55,2.54922754]
[1756985168361,67.407,207.64,207.53,130.00417737]
[1756985168362,7.26,207.56,207.53,125.96]
[1756985168659,7.26,207.59,207.53,118.26]
[1756985168859,7.26,207.59,207.54,7.7]
[1756985169163,4.3345,207.58,207.53,118.26]
[1756985169550,4.3345,207.58,207.54,7.7]
[1756985169856,4.3345,207.58,207.53,118.26]
[1756985170059,4.3345,207.58,207.54,7.7]
[1756985170360,4.3345,207.58,207.55,2.54922754]
[1756985170659,4.3345,207.58,207.56,7.7]
[1756985171561,4.3345,207.58,207.57,1.63348639]
[1756985172862,12.3441,207.6,207.57,9.24348639]
[1756985173365,8.01,207.64,207.57,9.24348639]
[1756985174667,8.01,207.64,207.57,7.61]
[1756985175057,8.01,207.64,207.57,9.24348639]
[1756985175253,69.03498639,207.65,207.57,9.24348639]
[1756985175254,1.63348639,207.63,207.57,9.24348639]
[1756985175461,8.01,207.62,207.57,9.24348639]
[1756985175656,1.63348639,207.63,207.57,9.24348639]
[1756985175857,4.3341,207.6,207.57,9.24348639]
[1756985176058,12.3441,207.6,207.57,9.24348639]
[1756985177360,12.3437,207.62,207.57,1.63348639]
[1756985177561,12.3437,207.62,207.59,9.24348639]
[1756985179059,8.01,207.66,207.6,1.63348639]
[1756985180360,4.3335,207.63,207.6,1.63348639]
[1756985180559,12.3435,207.63,207.6,1.63348639]
[1756985180961,8.01,207.62,207.6,1.63348639]
[1756985181863,12.3437,207.62,207.6,1.63348639]
[1756985182065,8.01,207.61,207.6,1.63348639]
[1756985182363,4.334,207.61,207.58,1.63348639]
[1756985182567,8.01,207.64,207.58,1.63348639]
[1756985183466,8.01,207.64,207.55,1.63348639]
[1756985183467,1.63348639,207.61,207.55,1.63348639]
[1756985183668,9.64348639,207.61,207.55,1.63348639]
[1756985184564,12.3438,207.61,207.57,1.63348639]
[1756985184867,67.3959,207.67,207.59,1.63348639]
[1756985184868,8.01,207.65,207.59,1.63348639]
[1756985185867,4.3337,207.62,207.59,1.63348639]
[1756985186070,8.01,207.61,207.59,1.63348639]
[1756985186567,8.01,207.61,207.57,7.61]
[1756985186770,8.01,207.61,207.58,1.63348639]
[1756985186973,12.3438,207.61,207.58,1.63348639]
[1756985188261,12.3438,207.61,207.58,9.24348639]
[1756985190271,1.63348639,207.66,207.57,4.04417737]
[1756985190272,1.63348639,207.64,207.57,4.04417737]
[1756985190477,1.63348639,207.64,207.56,5.68486627]
[1756985190478,8.01,207.63,207.56,5.68486627]
[1756985190869,8.01,207.63,207.58,1.63348639]
[1756985191069,1.63348639,207.64,207.58,1.63348639]
[1756985191467,8.01,207.63,207.58,1.63348639]
[1756985191665,8.01,207.59,207.56,5.68486627]
[1756985191975,8.01,207.63,207.56,5.68486627]
[1756985192476,8.01,207.63,207.56,1.63348639]
[1756985193968,1.63348639,207.64,207.56,1.63348639]
[1756985193969,8.01,207.59,207.56,1.63348639]
[1756985194369,4.3342,207.6,207.56,5.68486627]
[1756985194566,8.01,207.59,207.56,5.68486627]
[1756985196577,8.01,207.58,207.56,4.05137988]
[1756985196777,8.01,207.58,207.57,1.63348639]
[1756985198177,12.3443,207.59,207.57,1.63348639]
[1756985198979,8.01,207.59,207.57,1.63348639]
[1756985199276,12.3439,207.61,207.57,9.24348639]
[1756985199668,4.3339,207.61,207.57,9.24348639]
[1756985199875,8.01,207.6,207.57,9.24348639]
[1756985200473,8.01,207.59,207.57,1.63348639]
[1756985201378,8.01,207.59,207.57,5.68486627]
[1756985202273,8.01,207.59,207.57,1.63348639]
[1756985202880,8.01,207.59,207.57,9.32348639]
[1756985203774,4.3342,207.59,207.56,4.05137988]
[1756985203979,11.9242,207.59,207.57,1.63348639]
[1756985204479,7.59,207.61,207.57,1.63348639]
[1756985204677,4.3337,207.62,207.58,7.69]
[1756985204878,4.3337,207.62,207.59,9.32348639]
[1756985205174,7.59,207.65,207.59,1.63348639]
[1756985205679,7.59,207.62,207.59,1.63348639]
[1756985205876,4.3335,207.63,207.59,1.63348639]
[1756985206276,7.59,207.62,207.59,1.63348639]
[1756985206479,11.9229,207.65,207.59,13.37486627]
[1756985206781,7.59,207.64,207.61,1.63348639]
[1756985207182,4.3329,207.65,207.61,1.63348639]
[1756985207480,7.59,207.64,207.61,1.63348639]
[1756985207680,4.3329,207.65,207.61,1.63348639]
[1756985208676,3.68193635,207.64,207.61,1.63348639]
[1756985208878,7.59,207.64,207.61,1.63348639]